fUST/lending_fUST_20241106
["ID","MTS","AMOUNT","RATE_DAILY","PERIOD"]
[341398648,1730863838288,-1302.22,0.00040684,120]
[341398650,1730863838297,-500.0,0.00040821,14]
[341398652,1730863838307,-500.0,0.00040821,14]
[341398654,1730863838318,-548.35,0.00040821,14]
[341398657,1730863838327,-1115.95,0.00040821,14]
[341398659,1730863838337,-500.0,0.00040821,14]
[341398661,1730863838347,-808.28,0.00040821,14]
[341398663,1730863838356,-500.0,0.00040821,14]
[341398665,1730863838366,-500.0,0.00040821,14]
[341398667,1730863838375,-748.46,0.00040821,14]
[341398669,1730863838385,-500.0,0.00040821,14]
[341398671,1730863838395,-1121.31,0.00040821,14]
[341398673,1730863838404,-1883.82,0.00040821,14]
[341398675,1730863838414,-500.0,0.00040821,14]
[341398677,1730863838423,-2816.22,0.00040821,14]
[341398679,1730863838433,-4398.91,0.00040821,14]
[341398680,1730863838443,-154.01634535,0.00040916,2]
[341398682,1730863838452,-168.185,0.0004095,30]
[341398685,1730863838462,-615.97358228,0.00040975,5]
[341398687,1730863838471,-500.0,0.00041,120]
[341398689,1730863838484,-56249.50775548,0.00041,10]
[341398691,1730863838508,-2076.16501824,0.00041,120]
[341398693,1730863838518,-1000.0,0.00041016,5]
[341398695,1730863838527,-1002.07622317,0.00041036,5]
[341398697,1730863838538,-1000.0,0.00041036,5]
[341398699,1730863838547,-153.0,0.00041041,30]
[341398701,1730863838557,-153.0,0.00041041,30]
[341398703,1730863838566,-153.0,0.00041041,30]
[341398705,1730863838576,-153.0,0.00041041,30]
[341398707,1730863838586,-153.0,0.00041041,30]
[341398709,1730863838595,-152.0,0.00041079,14]
[341398711,1730863838605,-500.0,0.00041095,14]
[341398713,1730863838614,-500.0,0.00041095,14]
[341398715,1730863838624,-548.35,0.00041095,14]
[341398717,1730863838633,-1115.95,0.00041095,14]
[341398719,1730863838642,-500.0,0.00041095,14]
[341398721,1730863838652,-808.28,0.00041095,14]
[341398723,1730863838661,-500.0,0.00041095,14]
[341398725,1730863838670,-500.0,0.00041095,14]
[341398727,1730863838680,-748.46,0.00041095,14]
[341398729,1730863838689,-500.0,0.00041095,14]
[341398731,1730863838698,-1121.31,0.00041095,14]
[341398733,1730863838707,-1883.82,0.00041095,14]
[341398735,1730863838717,-500.0,0.00041095,14]
[341398737,1730863838726,-2816.22,0.00041095,14]
[341398739,1730863838742,-4398.91,0.00041095,14]
[341398741,1730863838751,-1791.92,0.000411,2]
[341398743,1730863838760,-255.0,0.0004116,46]
[341398745,1730863838770,-208.3667114,0.00041178,30]
[341398747,1730863838780,-303.4019452,0.00041178,30]
[341398749,1730863838789,-454.8623256,0.00041178,30]
[341398751,1730863838798,-169.499254,0.00041309,2]
[341398753,1730863838808,-5918.59443738,0.00041336,2]
[341398755,1730863838817,-500.0,0.00041369,14]
[341398757,1730863838827,-500.0,0.00041369,14]
[341398759,1730863838837,-548.35,0.00041369,14]
[341398761,1730863838846,-1115.95,0.00041369,14]
[341398762,1730863838856,-500.0,0.00041369,14]
[341398763,1730863838865,-808.28,0.00041369,14]
[341398764,1730863838875,-500.0,0.00041369,14]
[341398765,1730863838884,-500.0,0.00041369,14]
[341398766,1730863838894,-748.46,0.00041369,14]
[341398767,1730863838904,-500.0,0.00041369,14]
[341398768,1730863838913,-1121.31,0.00041369,14]
[341398769,1730863838924,-1883.82,0.00041369,14]
[341398770,1730863838934,-500.0,0.00041369,14]
[341398771,1730863838943,-2816.22,0.00041369,14]
[341398772,1730863838953,-4398.91,0.00041369,14]
[341398773,1730863838963,-5918.59443739,0.00041408,2]
[341398774,1730863838972,-152.0,0.00041425,90]
[341398775,1730863838986,-2596.3487983,0.00041576,2]
[341398776,1730863838995,-500.0,0.00041643,14]
[341398778,1730863839005,-500.0,0.00041643,14]
[341398780,1730863839015,-548.35,0.00041643,14]
[341398782,1730863839024,-1115.95,0.00041643,14]
[341398784,1730863839033,-500.0,0.00041643,14]
[341398786,1730863839043,-808.28,0.00041643,14]
[341398788,1730863839052,-1302.22,0.00041643,120]
[341398791,1730863839062,-500.0,0.00041643,14]
[341398793,1730863839071,-505.02873786,0.00041643,14]
[341398795,1730863839081,-500.0,0.00041643,14]
[341398797,1730863839092,-1121.31,0.00041643,14]
[341398798,1730863839102,-1883.82,0.00041643,14]
[341398800,1730863839111,-637.95341315,0.00041643,14]
[341398802,1730863839123,-2816.22,0.00041643,14]
[341398804,1730863839133,-4398.91,0.00041643,14]
[341398806,1730863839142,-529.0,0.00041869,2]
[341398808,1730863839151,-2393.0,0.00041869,2]
[341398810,1730863839163,-969.68445709,0.00041899,2]
[341398812,1730863839172,-6025.0682427,0.00041899,120]
[341398814,1730863839182,-500.0,0.000419,2]
[341398816,1730863839191,-500.0,0.00041917,14]
[341398818,1730863839200,-500.0,0.00041917,14]
[341398820,1730863839210,-548.35,0.00041917,14]
[341398822,1730863839219,-1115.95,0.00041917,14]
[341398824,1730863839232,-500.0,0.00041917,14]
[341398826,1730863839241,-808.28,0.00041917,14]
[341398828,1730863839250,-500.0,0.00041917,14]
[341398830,1730863839259,-500.0,0.00041917,14]
[341398832,1730863839269,-1121.31,0.00041917,14]
[341398834,1730863839278,-1883.82,0.00041917,14]
[341398836,1730863839288,-2816.22,0.00041917,14]
[341398838,1730863839297,-4398.91,0.00041917,14]
[341398840,1730863839306,-500.0,0.00041973,10]
[341398842,1730863839315,-156177.19635657,0.00042,30]
[341398916,1730863840041,-500.0,0.00020999,2]
[341398919,1730863840051,-500.0,0.00020999,2]
[341398921,1730863840061,-500.0,0.00020999,2]
[341398924,1730863840070,-500.0,0.00020999,2]
[341398927,1730863840079,-500.0,0.00020999,2]
[341398929,1730863840089,-500.0,0.00020999,2]
[341398931,1730863840098,-500.0,0.00020999,2]
[341398933,1730863840108,-500.0,0.00020999,2]
[341398935,1730863840122,-155.16296415,0.00020999,2]
[341398937,1730863840131,-500.0,0.00020999,2]
[341398939,1730863840141,-500.0,0.00020999,2]
[341398941,1730863840150,-500.0,0.00020999,2]
[341398943,1730863840161,-500.0,0.00020999,2]
[341398945,1730863840170,-500.0,0.00020999,2]
[341398947,1730863840180,-301.642009,0.00020999,2]
[341398949,1730863840190,-500.0,0.00020999,2]
[341398951,1730863840200,-500.0,0.00020999,2]
[341398953,1730863840210,-500.0,0.00020999,2]
[341398955,1730863840219,-500.0,0.00020999,2]
[341398957,1730863840230,-500.0,0.00020999,2]
[341398959,1730863840243,-375.8468446,0.00020999,2]
[341398961,1730863840252,-500.0,0.00020999,2]
[341398963,1730863840262,-500.0,0.00020999,2]
[341398965,1730863840271,-500.0,0.00020999,2]
[341398967,1730863840282,-500.0,0.00020999,2]
[341398969,1730863840291,-500.0,0.00020999,2]
[341398971,1730863840302,-500.0,0.00020999,2]
[341398973,1730863840312,-500.0,0.00020999,2]
[341398975,1730863840321,-500.0,0.00020999,2]
[341398977,1730863840330,-500.0,0.00020999,2]
[341398979,1730863840340,-500.0,0.00020999,2]
[341398981,1730863840350,-500.0,0.00020999,2]
[341398983,1730863840360,-200.0,0.00020999,2]
[341398985,1730863840370,-500.0,0.00020999,2]
[341398988,1730863840380,-500.0,0.00020999,2]
[341398990,1730863840391,-500.0,0.00020999,2]
[341398992,1730863840400,-500.0,0.00020999,2]
[341398994,1730863840410,-500.0,0.00020999,2]
[341398997,1730863840419,-500.0,0.00020999,2]
[341398998,1730863840429,-500.0,0.00020999,2]
[341399000,1730863840438,-377.60161325,0.00020999,2]
[341399002,1730863840448,-500.0,0.00020999,2]
[341399004,1730863840458,-500.0,0.00020999,2]
[341399007,1730863840468,-500.0,0.00020999,2]
[341399009,1730863840478,-500.0,0.00020999,2]
[341399011,1730863840495,-500.0,0.00020999,2]
[341399013,1730863840505,-500.0,0.00022661,2]
[341399015,1730863840514,-1000.0,0.00024031,2]
[341399017,1730863840524,-500.0,0.00024658,2]
[341399019,1730863840534,-500.0,0.00024658,2]
[341399021,1730863840543,-216.61291427,0.00024658,2]
[341399023,1730863840553,-611.48807984,0.00024658,2]
[341399025,1730863840563,-500.0,0.00024658,2]
[341399027,1730863840573,-500.0,0.00024658,2]
[341399029,1730863840582,-500.0,0.00024658,2]
[341399031,1730863840593,-500.0,0.00024658,2]
[341399033,1730863840603,-500.0,0.00024658,2]
[341399035,1730863840613,-1500.0,0.00026535,2]
[341399037,1730863840623,-500.0,0.00027397,2]
[341399039,1730863840633,-500.0,0.00027397,2]
[341399041,1730863840643,-500.0,0.00027397,2]
[341399043,1730863840652,-500.0,0.00027397,2]
[341399045,1730863840662,-500.0,0.00027397,2]
[341399047,1730863840672,-500.0,0.00027397,2]
[341399049,1730863840682,-500.0,0.00027397,2]
[341399051,1730863840691,-500.0,0.00027397,2]
[341399053,1730863840701,-500.0,0.00027397,2]
[341399055,1730863840711,-500.0,0.00027397,2]
[341399057,1730863840720,-500.0,0.00027397,2]
[341399059,1730863840736,-500.0,0.00027397,2]
[341399061,1730863840746,-500.0,0.00027397,2]
[341399064,1730863840755,-500.0,0.00027397,2]
[341399065,1730863840765,-500.0,0.00027397,2]
[341399068,1730863840774,-500.0,0.00027397,2]
[341399070,1730863840783,-500.0,0.00027397,2]
[341399072,1730863840793,-500.0,0.00027397,2]
[341399074,1730863840804,-500.0,0.00027397,2]
[341399076,1730863840813,-186.26458866,0.00027397,2]
[341399078,1730863840822,-500.0,0.00027397,2]
[341399080,1730863840831,-500.0,0.00027397,2]
[341399082,1730863840840,-500.0,0.00027397,2]
[341399083,1730863840849,-500.0,0.00027397,2]
[341399086,1730863840859,-500.0,0.00027397,2]
[341399087,1730863840869,-500.0,0.00027397,2]
[341399090,1730863840878,-2000.0,0.00029779,5]
[341399092,1730863840887,-2500.0,0.0003362,5]
[341399094,1730863840896,-3000.0,0.00037976,5]
[341399096,1730863840906,-904.58,0.000385,30]
[341399098,1730863840916,-300.0,0.00039999,31]
[341399100,1730863840925,-264.17795703,0.00039999,31]
[341399102,1730863840935,-644.62688989,0.00039999,7]
[341399104,1730863840944,-500.0,0.00039999,31]
[341399106,1730863840953,-500.0,0.00039999,31]
[341399108,1730863840963,-357.40143492,0.00039999,31]
[341399110,1730863840972,-152.87187162,0.00039999,31]
[341399112,1730863840984,-500.0,0.00039999,31]
[341399114,1730863840993,-500.0,0.00039999,31]
[341399116,1730863841006,-242.91828763,0.00039999,31]
[341399118,1730863841015,-500.0,0.00039999,31]
[341399120,1730863841026,-500.0,0.00041096,31]
[341399122,1730863841035,-270.04491327,0.00041096,31]
[341399124,1730863841044,-500.0,0.00041096,31]
[341399126,1730863841054,-500.0,0.00041096,31]
[341399128,1730863841062,-500.0,0.00041096,31]
[341399130,1730863841071,-585.56054592,0.00041096,31]
[341399132,1730863841081,-500.0,0.00041096,31]
[341399133,1730863841089,-500.0,0.00041096,31]
[341399135,1730863841099,-500.0,0.00041096,31]
[341399137,1730863841109,-500.0,0.00041096,31]
[341399139,1730863841121,-500.0,0.00041096,31]
[341399141,1730863841131,-500.0,0.00041096,31]
[341399143,1730863841140,-40053.94770603,0.00042,30]
[341399145,1730863841153,-11404.8523183,0.00042,30]
[341399148,1730863841169,-22223.40000003,0.00042,30]
[341399151,1730863841184,-604.50391902,0.00042,30]
[341406943,1730863926768,1169.27083333,0.00020816,2]
[341408873,1730864204109,167.121724,0.00013973,2]
[341408891,1730864538618,1169.27083333,0.00020816,2]
[341408892,1730864661290,2742.203986,0.0002,2]
[341408895,1730864838440,170.056398,0.00013973,2]
[341408898,1730864894758,-293.1601465,0.00021172,2]
[341408899,1730864894787,-886.165651,0.00021295,2]
[341408900,1730864894809,-939.0645144,0.0002143,2]
[341408901,1730864894833,-1169.27083333,0.0002143,2]
[341408903,1730864902832,40.33885477,0.00021307,2]
[341408989,1730865039329,-176.345586,0.00020895,2]
[341408991,1730865039339,-92.60072038,0.00021061,2]
[341408993,1730865039351,-1076.67011295,0.00021061,2]
[341408995,1730865039360,-300.0,0.00021133,2]
[341408997,1730865039370,-300.0,0.00021133,2]
[341408999,1730865039382,-500.0,0.00021133,2]
[341409001,1730865039391,-500.0,0.00021133,2]
[341409004,1730865039402,-500.0,0.00021133,2]
[341409006,1730865039412,-500.0,0.00021133,2]
[341409008,1730865039421,-500.0,0.00021133,2]
[341409010,1730865039431,-500.0,0.00021133,2]
[341409012,1730865039440,-500.0,0.00021133,2]
[341409014,1730865039449,-500.0,0.00021133,2]
[341409016,1730865039458,-500.0,0.00021133,2]
[341409018,1730865039468,-514.09781639,0.00021133,2]
[341409020,1730865039480,-500.0,0.00021133,2]
[341409022,1730865039491,-232.58451717,0.00021133,2]
[341409024,1730865039505,-267.41548283,0.00021133,2]
[341409026,1730865039514,-500.0,0.00021133,2]
[341409028,1730865039524,-500.0,0.00021133,2]
[341409030,1730865039533,-500.0,0.00021133,2]
[341409032,1730865039543,-285.76006666,0.00021133,2]
[341409034,1730865039552,-500.0,0.00021133,2]
[341409035,1730865039561,-500.0,0.00021133,2]
[341409037,1730865039570,-500.0,0.00021133,2]
[341409039,1730865039582,-500.0,0.00021133,2]
[341409040,1730865039591,-371.50317367,0.00021133,2]
[341409041,1730865039602,-500.0,0.00021133,2]
[341409042,1730865039613,-500.0,0.00021133,2]
[341409043,1730865039624,-500.0,0.00021133,2]
[341409044,1730865039634,-500.0,0.00021133,2]
[341409045,1730865039644,-500.0,0.00021133,2]
[341409046,1730865039653,-500.0,0.00021133,2]
[341409047,1730865039662,-500.0,0.00021133,2]
[341409048,1730865039671,-500.0,0.00021133,2]
[341409049,1730865039681,-500.0,0.00021133,2]
[341409050,1730865039692,-500.0,0.00021133,2]
[341409051,1730865039702,-500.0,0.00021133,2]
[341409052,1730865039712,-24900.0,0.00021134,2]
[341409053,1730865039722,-154.34739132,0.00021405,2]
[341409054,1730865039731,-2457.97061624,0.00021506,2]
[341409127,1730865041187,-542.02938376,0.00021506,2]
[341409128,1730865041198,-1272.36430986,0.00021506,2]
[341409188,1730865043979,-2598.70000001,0.00021506,2]
[341409201,1730865044089,-164.62981406,0.00021506,2]
[341409528,1730865047803,-2031.82555477,0.00021506,2]
[341409530,1730865047814,-635.70904512,0.0002198,2]
[341412260,1730865151224,1169.27083333,0.00020816,2]
[341412261,1730865234214,10235.0,0.00034755,30]
[341412266,1730865762819,1169.27083333,0.00020816,2]
[341412268,1730865922427,162.834951,0.00013973,2]
[341412276,1730866209465,-605.0,0.00022095,2]
[341412321,1730866232914,-564.27083333,0.00022095,2]
[341412323,1730866232924,-173.934109,0.0002228,2]
[341412325,1730866232933,-185.967687,0.00022358,2]
[341412327,1730866232942,-3000.0,0.00022702,2]
[341412328,1730866232951,-729.455032,0.00022948,2]
[341412330,1730866232961,-729.455032,0.00023633,2]
[341412332,1730866232970,-300.0,0.00023859,2]
[341412334,1730866232979,-300.0,0.00023859,2]
[341412336,1730866232989,-500.0,0.0002386,2]
[341412338,1730866233000,-253.97334074,0.0002386,2]
[341412340,1730866233009,-500.0,0.0002386,2]
[341412342,1730866233018,-223.78864627,0.0002386,2]
[341412344,1730866233027,-207.94479707,0.0002386,2]
[341412346,1730866233037,-500.0,0.0002386,2]
[341412347,1730866233046,-500.0,0.0002386,2]
[341412349,1730866233057,-500.0,0.0002386,2]
[341412351,1730866233067,-500.0,0.0002386,2]
[341412353,1730866233076,-500.0,0.0002386,2]
[341412355,1730866233086,-500.0,0.0002386,2]
[341412357,1730866233096,-553.17554949,0.0002386,2]
[341412359,1730866233105,-500.0,0.0002386,2]
[341412361,1730866233114,-500.0,0.0002386,2]
[341412363,1730866233125,-500.0,0.0002386,2]
[341412365,1730866233134,-500.0,0.0002386,2]
[341412367,1730866233143,-500.0,0.0002386,2]
[341412368,1730866233153,-148.58107845,0.0002386,2]
[341412408,1730866239006,-5590.71216534,0.0002267,2]
[341412409,1730866239056,-19309.28783466,0.0002267,2]
[341412410,1730866239066,-351.41892155,0.0002386,2]
[341412411,1730866239076,-434.3528563,0.0002386,2]
[341412412,1730866239086,-500.0,0.0002386,2]
[341412413,1730866239095,-500.0,0.0002386,2]
[341412414,1730866239105,-500.0,0.0002386,2]
[341412415,1730866239115,-500.0,0.0002386,2]
[341412416,1730866239124,-774.93299104,0.0002386,2]
[341412417,1730866239133,-2691.22582918,0.00023902,2]
[341412418,1730866239142,-407.2546832,0.00024003,2]
[341412419,1730866239151,-729.455032,0.00024318,2]
[341412420,1730866239161,-500.0,0.00024658,2]
[341412421,1730866239170,-155.81949776,0.00024658,2]
[341412422,1730866239180,-162.834951,0.00025156,2]
[341412423,1730866239190,-420.0,0.00025877,2]
[341412424,1730866239199,-420.0,0.00026244,2]
[341412425,1730866239208,-2691.22582914,0.00026473,2]
[341412426,1730866239218,-500.60418354,0.00026583,2]
[341412427,1730866239227,-500.0,0.00026583,2]
[341412429,1730866239237,-500.0,0.00026583,2]
[341412430,1730866239246,-1452.28919728,0.00027277,2]
[341412432,1730866239257,-385.0408634,0.00027287,2]
[341412433,1730866239266,-610.18,0.00027367,3]
[341412434,1730866239275,-305.09,0.00027367,3]
[341412435,1730866239285,-152.54,0.00027367,3]
[341412436,1730866239294,-457.67,0.00027367,3]
[341412437,1730866239303,-1051.02,0.00027367,10]
[341412438,1730866239311,-875.85,0.00027367,10]
[341412439,1730866239320,-368.12845736,0.00027372,2]
[341412440,1730866239330,-512.50676434,0.00027373,2]
[341412441,1730866239339,-501.71053823,0.00027373,2]
[341412442,1730866239349,-500.0,0.00027373,2]
[341412443,1730866239359,-38878.36605482,0.00027377,4]
[341412456,1730866242225,-604.50391902,0.00027377,4]
[341412478,1730866243923,-188.44242339,0.00026583,2]
[341412479,1730866243933,-500.74662778,0.00026583,2]
[341412480,1730866243942,-10293.09086423,0.00027377,4]
[341412496,1730866247256,-729.87,0.00027367,10]
[341412497,1730866247266,-23068.48368452,0.00027377,4]
[341412504,1730866375007,1169.27083333,0.00020816,2]
[341412509,1730866900852,164.37957,0.00013973,2]
[341412510,1730866986852,1169.27083333,0.00020816,2]
[341412522,1730867262275,407.0,0.00034719,120]
[341412527,1730867295248,3459.95365858,0.000167,2]
[341412528,1730867302809,214.62398508,0.000123,2]
[341412688,1730867438539,-1169.27083333,0.00023985,2]
[341412690,1730867438548,-176.345586,0.0002474,2]
[341412691,1730867438557,-1514.35330278,0.00025243,2]
[341412702,1730867438655,-1485.64669722,0.00025243,2]
[341412705,1730867438664,-154.34739132,0.00025811,2]
[341412707,1730867438673,-173.934109,0.00025911,2]
[341412709,1730867438682,-300.0,0.00026098,2]
[341412711,1730867438691,-437.15031737,0.00026098,2]
[341412713,1730867438700,-500.0,0.00026098,2]
[341412715,1730867438710,-24900.0,0.00026099,2]
[341412717,1730867438720,-164.37957,0.00026274,2]
[341412719,1730867438729,-3177.8452636,0.00026849,2]
[341412721,1730867438738,-500.0,0.00027373,2]
[341412723,1730867438747,-162.42087471,0.00027373,2]
[341412725,1730867438757,-501.66763689,0.00027373,2]
[341412727,1730867438766,-500.0,0.00027373,2]
[341412729,1730867438775,-625.39643269,0.00027373,2]
[341412731,1730867438784,-500.86182665,0.00027373,2]
[341412733,1730867438793,-177.96,0.00027387,3]
[341412735,1730867438802,-266.95,0.00027387,3]
[341412737,1730867438812,-348.20482521,0.00027387,10]
[341412870,1730867439814,-260.02517479,0.00027387,10]
[341412872,1730867439824,-496.08482521,0.00027387,3]
[341413246,1730867443576,-501.21428575,0.00027373,2]
[341413247,1730867443585,-500.0,0.00027373,2]
[341413248,1730867443595,-304.80517479,0.00027387,3]
[341413249,1730867443605,-506.86,0.00027387,10]
[341413250,1730867443618,-780.31692091,0.00027396,2]
[341413332,1730867446079,-220.96335884,0.00027396,2]
[341413335,1730867446090,-516.62199403,0.00027396,2]
[341413337,1730867446103,-257.68992015,0.00027396,2]
[341413339,1730867446115,-983.91906869,0.00027397,2]
[341413342,1730867446128,-983.91906869,0.00027397,2]
[341413343,1730867446138,-983.91906869,0.00027397,2]
[341413345,1730867446152,-983.91906869,0.00027397,2]
[341413347,1730867446163,-250.6443974,0.00027397,2]
[341413349,1730867446176,-733.27467129,0.00027397,2]
[341413352,1730867446189,-983.91906869,0.00027397,2]
[341413354,1730867446200,-983.91906869,0.00027397,2]
[341413356,1730867446210,-983.91906869,0.00027397,2]
[341413358,1730867446220,-983.91906869,0.00027397,2]
[341413359,1730867446230,-983.91906869,0.00027397,2]
[341413362,1730867446243,-983.91906869,0.00027397,2]
[341413364,1730867446254,-707.84767688,0.00027397,2]
[341413641,1730867598112,1169.27083333,0.00020816,2]
[341413642,1730868018460,165.297658,0.00013973,2]
[341413644,1730868208983,1169.27083333,0.00020816,2]
[341413675,1730868478787,10000.0,0.00020816,2]
[341413676,1730868492913,2887.78,0.00020816,2]
[341413677,1730868522392,162.675257,0.00013973,2]
[341413704,1730868632127,-300.0,0.00024326,2]
[341413706,1730868632137,-300.0,0.00024326,2]
[341413708,1730868632147,-122.43168673,0.00024327,2]
[341414311,1730868638449,-1169.27083333,0.00023613,2]
[341414313,1730868638459,-24777.56831327,0.00024327,2]
[341414314,1730868638469,-3000.0,0.00024475,2]
[341414316,1730868638479,-185.967687,0.00025009,2]
[341414318,1730868638489,-500.0,0.00025473,2]
[341414320,1730868638499,-500.0,0.00025473,2]
[341414322,1730868638510,-501.26594913,0.00025473,2]
[341414324,1730868638521,-500.0,0.00025474,2]
[341414326,1730868638531,-180.38294411,0.00025474,2]
[341414328,1730868638540,-363.49451155,0.00025474,2]
[341414330,1730868638550,-1252.36130027,0.00025475,2]
[341414331,1730868638559,-151.61645,0.00025478,7]
[341414333,1730868638569,-151.0,0.00025478,7]
[341414335,1730868638581,-420.0,0.00026371,2]
[341414337,1730868638592,-398.0,0.00026758,2]
[341414339,1730868638602,-365.69128985,0.00026842,2]
[341414341,1730868638612,-1002.77235345,0.00026842,2]
[341414343,1730868638621,-185.80998421,0.00027297,2]
[341414345,1730868638631,-485.62122385,0.00027373,2]
[341414346,1730868638640,-502.65192046,0.00027373,2]
[341414348,1730868638650,-599.59441399,0.00027373,2]
[341414350,1730868638659,-500.59757276,0.00027373,2]
[341414352,1730868638668,-157.73696894,0.00027373,2]
[341414360,1730868638745,-258.15140034,0.00027373,2]
[341414363,1730868638760,-500.0,0.00027373,2]
[341414364,1730868638771,-500.0,0.00027373,2]
[341414366,1730868638780,-500.0,0.00027373,2]
[341414368,1730868638790,-500.0,0.00027373,2]
[341414370,1730868638799,-168.4629546,0.00027373,2]
[341414372,1730868638808,-500.0,0.00027373,2]
[341414374,1730868638818,-501.4711944,0.00027373,2]
[341414375,1730868638827,-596.15270963,0.00027373,2]
[341414377,1730868638839,-500.0,0.00027373,2]
[341414379,1730868638849,-501.43262596,0.00027373,2]
[341414381,1730868638859,-500.0,0.00027373,2]
[341414383,1730868638869,-160.80511018,0.00027373,2]
[341414385,1730868638880,-502.28260143,0.00027373,2]
[341414387,1730868638890,-500.0,0.00027373,2]
[341414389,1730868638900,-500.0,0.00027373,2]
[341414391,1730868638909,-502.07634981,0.00027373,2]
[341414393,1730868638919,-302.10870539,0.00027373,2]
[341414395,1730868638928,-500.0,0.00027373,2]
[341414396,1730868638937,-500.0,0.00027373,2]
[341414398,1730868638947,-330.5288269,0.00027373,2]
[341414400,1730868638957,-711.43,0.00027377,3]
[341414403,1730868638969,-8715.35,0.00027377,10]
[341414404,1730868638979,-151.0,0.00027387,7]
[341414406,1730868638990,-474.28,0.00027387,3]
[341414408,1730868638999,-237.14,0.00027387,3]
[341414410,1730868639009,-160.48992455,0.00027396,2]
[341414412,1730868639019,-600.0,0.00027396,2]
[341414414,1730868639030,-1169.36864196,0.00027396,2]
[341414416,1730868639040,-151.0,0.00027397,7]
[341414418,1730868639049,-151.0,0.00027397,7]
[341414420,1730868639060,-151.0,0.00027397,7]
[341414422,1730868639071,-154.305075,0.00027397,7]
[341414424,1730868639082,-151.0,0.00027397,7]
[341414426,1730868639093,-151.0,0.00027397,7]
[341414428,1730868639103,-151.0,0.00027397,7]
[341414430,1730868639113,-151.0,0.00027397,7]
[341414431,1730868639123,-155.915242,0.00027397,7]
[341414433,1730868639132,-151.0,0.00027397,7]
[341414435,1730868639142,-154.804561,0.00027397,7]
[341414437,1730868639151,-151.0,0.00027397,7]
[341414439,1730868639161,-157.287643,0.00027397,7]
[341414441,1730868639171,-151.0,0.00027397,7]
[341414443,1730868639180,-171.587718,0.00027397,7]
[341414445,1730868639189,-204.621556,0.00027397,7]
[341414447,1730868639199,-151.0,0.00027397,7]
[341414449,1730868639208,-151.0,0.00027397,7]
[341414451,1730868639217,-151.0,0.00027397,7]
[341414452,1730868639228,-151.0,0.00027397,7]
[341414454,1730868639238,-151.0,0.00027397,7]
[341414456,1730868639248,-151.0,0.00027397,7]
[341414458,1730868639257,-151.0,0.00027397,7]
[341414460,1730868639267,-151.0,0.00027397,7]
[341414462,1730868639277,-151.0,0.00027397,7]
[341414464,1730868639287,-151.0,0.00027397,7]
[341414466,1730868639296,-299.480882,0.00027397,7]
[341414468,1730868639306,-151.0,0.00027397,7]
[341414470,1730868639315,-263.187532,0.00027397,7]
[341414472,1730868639324,-151.0,0.00027397,7]
[341414474,1730868639338,-151.0,0.00027397,7]
[341414476,1730868639350,-151.0,0.00027397,7]
[341414478,1730868639359,-151.0,0.00027397,7]
[341414480,1730868639369,-151.0,0.00027397,7]
[341414482,1730868639378,-151.0,0.00027397,7]
[341414483,1730868639387,-151.0,0.00027397,7]
[341414485,1730868639398,-151.0,0.00027397,7]
[341414487,1730868639407,-151.0,0.00027397,7]
[341414489,1730868639417,-151.0,0.00027397,7]
[341414491,1730868639426,-151.0,0.00027397,7]
[341414493,1730868639436,-151.0,0.00027397,7]